Cogmind - Beta 16 @@@ ROGUE MODE // 2026.01.21 @ 15:06:24 Player: ILikeVoltron Result: Destroyed by GZ-8GO(R) with Subdweller Machine Gun Performance ------------- Evolutions (0) 0 Regions Visited (2) 400 Robots Destroyed (14) 70 Value Destroyed (188) 188 Prototype IDs (0) 0 Alien Tech Used (0) 0 Bonus (0) 0 TOTAL SCORE: 658 Bonus ------- None Cogmind --------- Core Integrity 0/250 Matter 262/300 Energy 100/100 System Corruption 2% Temperature Cool (0) Movement Core (200) Ox3 Location -10/Subcaves Parts ------- > --- POWER (1) -------- (None) > --- PROPULSION (2) --- (None) > --- UTILITY (2) ------ Medium Storage Unit > --- WEAPON (2) ------- Light Assault Rifle > --- INVENTORY (10) --- Subdweller Power Source Medium Matter Pod (100) Improved Terrain Scanner Seismic Detector EM Pulse Gun Subdweller Laser Mining Laser Peak State ------------ > --- POWER ------------ Light Ion Engine > --- PROPULSION ------- Aluminum Leg Aluminum Leg > --- UTILITY ---------- Medium Storage Unit Improved Terrain Scanner > --- WEAPON ----------- Light Assault Rifle Light Assault Rifle > --- INVENTORY -------- Light Ion Engine Light Treads Aluminum Leg Improved Heat Sink Medium Matter Pod Seismic Detector EM Pulse Gun Mining Laser [Rating: 10] Favorites ----------- Power Light Ion Engine Engine Light Ion Engine Propulsion Aluminum Leg Treads Light Treads Leg Aluminum Leg Utility Medium Storage Unit Device Structural Scanner Storage Medium Storage Unit Weapon Light Assault Rifle Ballistic Gun Light Assault Rifle Special Weapon Mining Laser Build | -11 -10 -10 ------- Run | Yrd Mat Sub Slots Evolved . | . . . Power . | . . . Propulsion . | . . . Utility . | . . . Weapon . | . . . Parts Attached 12 | 2 4 6 Power 1 | . . 1 Engine 1 | . . 1 Core . | . . . Reactor . | . . . Propulsion 2 | . . 2 Treads 1 | . . 1 Leg 1 | . . 1 Wheel . | . . . Hover . | . . . Flight . | . . . Utility 6 | 1 4 1 Device 4 | 1 2 1 Storage 2 | . 2 . Processor . | . . . Hackware . | . . . Protection . | . . . Artifact . | . . . Weapon 3 | 1 . 2 Energy Gun . | . . . Energy Cannon . | . . . Ballistic Gun 2 | 1 . 1 Ballistic Cannon . | . . . Launcher . | . . . Special Weapon 1 | . . 1 Impact Weapon . | . . . Slashing Weapon . | . . . Piercing Weapon . | . . . Special Melee Weapon . | . . . Unidentified Prototypes . | . . . Parts Lost 8 | . . 8 Power 2 | . . 2 Propulsion 3 | . . 3 Utility 2 | . . 2 Weapon 1 | . . 1 Highest Loss Streak 5 | . . 5 To Critical Strikes . | . . . Average Backups 8 | 6 8 8 Power . | 1 1 . Propulsion 2 | 3 2 1 Utility 3 | . 3 3 Weapon 1 | 1 2 2 Tool/Special . | . . . Unused Backups 13 | 6 2 5 Power 3 | 1 . 2 Propulsion 7 | 3 2 2 Utility 1 | 1 . . Weapon 2 | 1 . 1 Tool/Special . | . . . Average Slot Usage (%) 94 | . 100 85 Engine 13 | . 14 12 Leg 25 | . 28 21 Device 10 | . 12 7 Storage 14 | . 15 14 Ballistic Gun 26 | . 28 25 Peak Build Rating 10 | 8 10 10 Average Rating 7 | 6 8 7 On Entrance 7 | 6 8 8 Avg Prop Armor Cover (%) . | . . . Naked Turns . | . . . Heaviest Build 17 | 11 17 16 Greatest Support 20 | 20 20 20 Greatest Overweight (x) 1 | . . 1 Average Overweight (x) . | . . . Largest Inventory Capacity 10 | 8 10 10 Average Capacity 9 | 8 9 10 Most Carried 9 | 8 9 9 Average Carried 8 | 6 8 8 Final Capacity 10 | 8 10 10 Final Carried 9 | 8 9 7 Class Distribution -------------------- 100% | Mutant Dominant Class ---------------- Mutant | -10/Materials Mutant | -10/Subcaves Resources | -11 -10 -10 ----------- Run | Yrd Mat Sub Matter Collected 507 | 334 93 80 Remotely . | . . . Salvage Created 394 | 193 146 55 Parts 27 | 17 9 1 Haulers Intercepted . | . . . Recyclers Shooed . | . . . Parts Field Recycled . | . . . Retrieved Matter . | . . . Parts Self-Destructed 3 | . . 3 Prevented . | . . . Parts Restored . | . . . Kills | -11 -10 -10 ------- Run | Yrd Mat Sub Combat Hostiles Destroyed 6 | . 5 1 Guns 6 | . 5 1 Classes Destroyed 6 | 3 2 1 Worker 3 | 2 1 . Tunneler 4 | 4 . . Recycler 1 | 1 . . Swarmer 3 | . 3 . Grunt 2 | . 2 . Subdweller 1 | . . 1 Best Kill Streak 4 | 3 4 1 Combat Bots Only 3 | . 3 1 Max Kills in Single Turn 1 | 1 1 1 Gunslinging . | . . . Exploded . | . . . Melee . | . . . Uniques/NPCs Destroyed . | . . . Combat | -11 -10 -10 -------- Run | Yrd Mat Sub Hostile Shots Fired 78 | . 26 52 Missed 22 | . 6 16 Hits 56 | . 20 36 Projectile 56 | . 20 36 Critical Strikes 1 | . . 1 Damage Taken 1010 | . 212 798 Core 259 | . 52 207 Absorbed by Shields . | . . . Core Remaining (%) 100 | 100 . . Volleys Fired 71 | 23 17 31 Largest 2 | 2 2 2 Hottest 100 | 40 40 100 Shots Fired 132 | 46 34 52 Gun 126 | 46 34 46 Cannon . | . . . Launcher . | . . . Special 6 | . . 6 Kinetic 126 | 46 34 46 Thermal 6 | . . 6 Explosive . | . . . Electromagnetic . | . . . Robot Hit Streak 14 | 11 6 14 Robot Miss Streak 2 | 2 2 1 Penetration Max . | . . . Secondary Targets . | . . . Shots Hit Robots 97 | 34 21 42 Core Hits 32 | 14 14 4 Critical Kills . | . . . Critical Parts Destroyed . | . . . Critical Strikes . | . . . Melee Attacks . | . . . Impact . | . . . Slashing . | . . . Piercing . | . . . Sneak Attacks . | . . . Combat Hostiles . | . . . Follow-up Attacks . | . . . Damage Inflicted 572 | 279 165 128 Guns 572 | 279 165 128 Cannons . | . . . Explosions . | . . . Melee . | . . . Ramming . | . . . Kinetic 572 | 279 165 128 Thermal . | . . . Explosive . | . . . Electromagnetic . | . . . Impact . | . . . Slashing . | . . . Piercing . | . . . Highest Corruption 2 | . 2 2 Average Corruption 1 | . 1 2 Corruption Purged . | . . . Corruption Blocked . | . . . Effects 18 | . 9 9 Message Errors 1 | . . 1 Matter Fused 6 | . 5 1 Heat Flow Errors 3 | . 1 2 Energy Discharges 3 | . 3 . Parts Rejected 1 | . . 1 Data Loss (minor) 3 | . . 3 Data Loss (major) 1 | . . 1 Overload Shots . | . . . Overflow Damage . | . . . Projectiles . | . . . Explosions . | . . . Melee . | . . . Knockbacks . | . . . Impact . | . . . Kinetic . | . . . Secondary . | . . . Self-Inflicted Damage . | . . . Shots . | . . . Rammed . | . . . Targets Rammed . | . . . Kicked . | . . . Crushed . | . . . Highest Temperature 220 | . 209 220 Average Temperature 86 | . 82 102 Received Heat Transfer 72 | . 72 . Siege Activations . | . . . Martial Activations . | . . . Shielding Activations . | . . . Robots Disrupted . | . . . Combat Hostiles . | . . . Robots Corrupted . | . . . Combat Hostiles . | . . . Parts Fried . | . . . Impact Corruptions . | . . . Robots Melted . | . . . Combat Hostiles . | . . . Parts Melted . | . . . Heat Transferred . | . . . Parts Sabotaged . | . . . Parts Stolen . | . . . Parts Stripped . | . . . Power Chain Reactions . | . . . Alert | -11 -10 -10 ------- Run | Yrd Mat Sub Maximum Alert Level . | . . . Low Security (%) 100 | 100 100 . Level 1 . | . . . Level 2 . | . . . Level 3 . | . . . Level 4 . | . . . Level 5 . | . . . High Security . | . . . Max Security . | . . . Peak Influence 65 | 15 65 . Initial . | . . . Average 9 | 2 10 . Influence Increases 160 | 35 125 . Destroy 0b10 Robot/C 100 | . 100 . Destroy 0b10 Robot/NC 40 | 35 5 . Destroy Leader 20 | . 20 . Influence Decreases 160 | 35 125 . Time Decay 160 | 35 125 . Squads Dispatched . | . . . Investigation . | . . . Extermination . | . . . Reinforcement . | . . . Assault . | . . . Garrison . | . . . Intercept . | . . . Searches Triggered . | . . . Construction Impeded . | . . . Haulers Reinforced . | . . . Active Scanning Responses . | . . . Cargo Convoy Interrupts . | . . . Stealth | -11 -10 -10 --------- Run | Yrd Mat Sub Distress Signals . | . . . Communications Jammed . | . . . Distress Signals . | . . . Times Spotted 8 | . 5 3 Peak Tracking Total 3 | . 3 2 Tactical Retreats . | . . . Traps | -11 -10 -10 ------- Run | Yrd Mat Sub Traps Triggered 2 | . 2 . Indirectly . | . . . Trap Hack Attempts . | . . . Triggered . | . . . Disarmed . | . . . Reprogrammed . | . . . Reused . | . . . Traps Extracted . | . . . Installed . | . . . Triggered . | . . . Machines | -11 -10 -10 ---------- Run | Yrd Mat Sub Machines Disabled . | . . . Max in Single Turn . | . . . Machines Repaired . | . . . Machines Dismantled . | . . . Machines Sabotaged . | . . . Overloaded Fab Kills . | . . . Hacking | -11 -10 -10 --------- Run | Yrd Mat Sub Machines Accessed 1 | . 1 . Terminals 1 | . 1 . Fabricators . | . . . Repair Stations . | . . . Recycling Units . | . . . Scanalyzers . | . . . Garrison Access . | . . . Total Hacks 3 | . 3 . Successful . | . . . Failed 3 | . 3 . Catastrophic . | . . . Database Lockouts . | . . . Manual . | . . . Terminals 3 | . 3 . Fabricators . | . . . Repair Stations . | . . . Recycling Units . | . . . Scanalyzers . | . . . Garrison Access . | . . . Terminal Hacks . | . . . Fabricator Hacks . | . . . Repair Station Hacks . | . . . Recycling Unit Hacks . | . . . Scanalyzer . | . . . Garrison Access Hacks . | . . . Unauthorized Hacks . | . . . Terminals . | . . . Fabricators . | . . . Repair Stations . | . . . Recycling Units . | . . . Scanalyzers . | . . . Garrison Access . | . . . Data Cores Recovered . | . . . Used . | . . . Hacking Detections 1 | . 1 . Full Trace Events . | . . . Feedback Events . | . . . Feedback Blocked . | . . . Robot Schematics Acquired . | . . . Robots Built . | . . . Authchips . | . . . Time . | . . . Total Robot Build Rating . | . . . Part Schematics Acquired . | . . . Parts Built . | . . . Authchips . | . . . Time . | . . . Total Part Build Rating . | . . . Part Studies Acquired . | . . . Parts Repaired . | . . . Time . | . . . Parts Recycled . | . . . Recycled Matter . | . . . Retrieved Matter . | . . . Retrieved Components . | . . . Parts Scanalyzed . | . . . Part Schematics Acquired . | . . . Parts Damaged . | . . . Bothacking | -11 -10 -10 ------------ Run | Yrd Mat Sub Used RIF Installer . | . . . Robots Hacked . | . . . Non-combat . | . . . Combat . | . . . Robot Hacks Applied . | . . . Relay Couplers Released . | . . . Fabnet Peak Effective % . | . . . Robots Rewired . | . . . Allies Hacked . | . . . Hacks Repelled . | . . . Allies | -11 -10 -10 -------- Run | Yrd Mat Sub Total Allies . | . . . Largest Group . | . . . Highest-Rated Group . | . . . Highest-Rated Ally . | . . . Total Orders . | . . . Ally Attacks . | . . . Total Damage . | . . . Kills . | . . . Allies Corrupted . | . . . Allies Melted . | . . . Intel | -11 -10 -10 ------- Run | Yrd Mat Sub Active Infowar (turns) 701 | 87 564 50 Terrain 89 | . 89 . Structural 452 | . 402 50 Seismic 160 | 87 73 . Robot Analysis Total . | . . . Derelict Logs Recovered . | . . . Drone Launches . | . . . Drone Recoveries . | . . . Exploration | -11 -10 -10 ------------- Run | Yrd Mat Sub Turns Passed 1190 | 166 635 389 Spaces Moved 426 | 49 172 205 Core . | . . . Treads . | . . . Legs 426 | 49 172 205 Wheels . | . . . Hover . | . . . Flight . | . . . Fastest Speed 120 | 120 120 120 Average Speed 130 | 120 120 142 Slowest Speed 190 | 120 120 190 Overloaded Moves . | . . . Propulsion Burnouts . | . . . Robots Hopped . | . . . Potential Cave-ins . | . . . Cave-ins Triggered . | . . . Exploration Rate (%) 15 | 4 29 12 Regions Visited 2 Branch Regions 1 Pre-discovered Areas . | . . . Known Exits Taken . | . . . Unknown Exits Taken 2 | 1 1 . Scrap Searched . | . . . Spaces Dug . | . . . Terrain Destroyed . | . . . Melee . | . . . Projectile . | . . . AOE . | . . . Terrain Rammed . | . . . Walls Destroyed . | . . . Machines Disabled . | . . . Actions | -11 -10 -10 --------- Run | Yrd Mat Sub Total 937 | 119 572 246 Wait 416 | 42 372 2 Move 424 | 48 171 205 Hop . | . . . Pick Up 8 | 3 3 2 Fast Attach 1 | 1 . . Attach 4 | . . 4 Detach . | . . . Swap 9 | 1 6 2 Drop 4 | 1 3 . Fire 71 | 23 17 31 Melee . | . . . Ram . | . . . Kick . | . . . Crush . | . . . Escape Stasis . | . . . Rewire . | . . . Trap . | . . . Miscellaneous . | . . . Route ------- -11/Scrapyard -10/Materials (discovered 2 exits: [*Min] / [*Sub]) -10/Subcaves History --------- Turn | Location | Event 52 | -11/Scrapyard | Discovered new exit (range 2) 167 | -11/Scrapyard | Entered Materials 224 | -10/Materials | Discovered new exit (range 12) 315 | -10/Materials | Build established: Mutant 324 | -10/Materials | Discovered new exit (range 16) 802 | -10/Materials | Entered Subcaves 895 | -10/Subcaves | Lost 3 parts (1p1n1u) 1166 | -10/Subcaves | Core integrity fell below 50% 1190 | -10/Subcaves | Core integrity fell below 20% 1191 | -10/Subcaves | Destroyed by GZ-8GO(R) with Subdweller Machine Gun Last Messages --------------- 00867_ Acquired 55 matter. 00868_ Subatomizers dissect the Sub. Power Source. 00871_ Acquired Sub. Power Source. 00885_ System corrupted: Matter fused (-10). 00900_ F:DHZJW6OOA%NX2AIUEP 00959_ System corrupted: Component data lost. 01002_ System corrupted: Substantial component data lost. 01019_ System corrupted: Heat flow error (+260). 01097_ System corrupted: Component data lost. 01133_ Acquired 15 matter. 01141_ Acquired 10 matter. 01145_ System corrupted: Heat flow error (+106). 01149_ Acquired Sub. Laser. 01169_ Aluminum Leg destroyed. 01173_ Lgt. Ion Engine destroyed. 01182_ System corrupted: Lgt. Treads rejected. 01183_ Aluminum Leg destroyed. 01183_ Lgt. Assault Rifle destroyed. 01187_ Imp. Heat Sink destroyed. 01189_ Subatomizers dissect the Lgt. Treads. Map ----- +----------------------------------------------------+ | ????## ##???### ##???????????????????? | | ????### ###??## ##???????????????????? | | #????### ####### ##???????????????????? | | ##???### ###### ###??#####????????????? | | ##?### # ### ###########???????????? | | #### ###### ###???????????? | | ## ##???????????? | | ### # # ## ### ###???????????? | | #### ## #### ## ### ##????????????? | | ?### ### ###### # ## ##????????????? | | ?### ### # #### ##????????????? | | ### ## ## ###???????????? | | ## ### ## ##???????????? | | # ### # ##???????????? | | # ###### ## ### ##???????????? | | ## ####?# ## ######## ###???????????? | | ?###?????## ###### ########## ####???????????? | | ?????????### ###### #??########????????????? | | ?????????### ##### #????? ##?????????????? | | ??????????## ### #??????????????????????? | | ??????????## ## "#??????????????????????? | | ??????????# ### "##?????????????????????? | | ??????????## ## ## " #?????????????????????? | | ???????????# #### ##?????????????????????? | | ???????????### #?# #?????????????????????? | | ?????????????## #?## @ #?????????????????????? | | ??????????????# ##??# RR #????????????????????? | | ??????????????# #???# "" ???????????????????? | | ??????????????## #???# " ""?????????????????? | | ???????????????####???## """##????????????????? | | ???????????????????????##"##] ##?????????????????? | | ????????????????????????""#?# ???????????????????? | | ????????????????????????# ??????????????????????? | | ????????????????????????# ??????????????????????? | | ?????????????????????????#"??????????????????????? | | ??????????????????????????#??????????????????????? | | ?????????????????????????????????????????????????? | | ?????????????????????????????????????????????????? | | ?????????????????????????????????????????????????? | | ?????????????????????????????????????????????????? | | ?????????????????????????????????????????????????? | | ?????????????????????????????????????????????????? | | ?????????????????????????????????????????????????? | | ?????????????????????????????????????????????????? | | ?????????????????????????????????????????????????? | | ?????????????????????????????????????????????????? | | ?????????????????????????????????????????????????? | | ?????????????????????????????????????????????????? | | ?????????????????????????????????????????????????? | | ?????????????????????????????????????????????????? | +----------------------------------------------------+ Best States ------------- Heat Dissipation 39 Energy Generation 10 Energy Capacity 125 Matter Stores 400 Matter Capacity 400 Sight Range 16 Terrain Scan Range 16 Terrain Scan Density 10 Evasion (%) 55 Recoil Reduction 1 Item Schematics ----------------- None Robot Schematics ------------------ None Fabricated ------------ Nothing Repaired ---------- Nothing Studied --------- None Alien Tech Used ----------------- None Achievements -------------- None Challenges ------------ None Game ------ Seed WarpPulseSabre Manual? 0 Play Time 00:07:34 Cumulative 174.8 hours Start 2026.01.21 @ 15:00:33 End 2026.01.21 @ 15:06:24 Sessions 1 Manual Loads 0 Difficulty Rogue Special Mode None Game No. 290 Rogue 286 Adventurer 0 Explorer 4 Win Type - Total 0 Types 0/0/0/0/0/0/0/0/0/0 Lore% 25 Gallery% 43 Achievement% 29 Wizard Run 0 Options --------- Layout 1 ASCII 0 Keyboard 1 Movement Arrows Keybinds 0 Fullscreen 1 Font 32/SmallcapsGlow Map View 130x35 Zoom Use 0% Tactical HUD 1 Map Filters NONE Filters NONE Steam 1 RUN: a4cc49bf-d6c4-46eb-bc37-4cfc38920cc8